bitfinex/quotes_BTCUSD_20250408
["timestamp","ask_amount","ask_price","bid_price","bid_amount"]
[1744132626072,0.6422585,77086.0,77085.0,4.4e-07]
[1744132626307,0.352973,77081.0,77080.0,7.1e-07]
[1744132626542,0.47923164,77081.0,77080.0,7.1e-07]
[1744132626805,0.46625864,77081.0,77057.0,0.21088]
[1744132627018,0.0298365,77086.0,77055.0,0.000335]
[1744132627019,0.612503,77063.0,77055.0,0.000335]
[1744132627236,0.612503,77063.0,77062.0,0.00043198]
[1744132627237,0.34,77063.0,77062.0,0.00043198]
[1744132627695,0.352976,77063.0,77062.0,0.00043198]
[1744132627932,0.4700216,77063.0,77062.0,0.00043198]
[1744132628386,0.59628024,77063.0,77062.0,0.00043198]
[1744132628677,0.352976,77063.0,77062.0,0.00043198]
[1744132628920,0.34,77063.0,77062.0,0.00043198]
[1744132629135,0.259527,77063.0,77062.0,0.00043198]
[1744132629311,0.272503,77063.0,77062.0,0.00043198]
[1744132629511,0.272486,77068.0,77062.0,0.00043198]
[1744132629512,0.612488,77068.0,77062.0,0.00043198]
[1744132629714,0.012974,77073.0,77064.0,0.012976]
[1744132630087,0.272503,77063.0,77062.0,0.00043198]
[1744132630326,0.274503,77063.0,77062.0,0.00043198]
[1744132630488,0.614503,77063.0,77062.0,0.00043198]
[1744132630699,0.616503,77063.0,77062.0,0.00043198]
[1744132631163,0.356976,77063.0,77062.0,0.00043198]
[1744132631389,0.60197844,77063.0,77062.0,0.00043198]
[1744132631617,0.48323464,77063.0,77062.0,0.00043198]
[1744132631846,0.50678892,77063.0,77062.0,0.00043198]
[1744132632080,0.38053028,77063.0,77062.0,0.00043198]
[1744132632567,0.28708128,77063.0,77062.0,0.00043198]
[1744132632569,0.02755428,77063.0,77062.0,0.00043198]
[1744132632797,0.004,77063.0,77062.0,0.27293898]
[1744132633030,0.004,77063.0,77062.0,0.41373847]
[1744132633266,0.003,77063.0,77062.0,0.41373847]
[1744132633492,0.008,77063.0,77062.0,0.41373847]
[1744132633721,0.259481,77077.0,77070.0,0.272476]
[1744132633945,0.58977618,77090.0,77071.0,0.12625864]
[1744132634205,0.012968,77110.0,77104.0,0.259389]
[1744132634403,0.01297,77098.0,77091.0,0.20776]
[1744132634621,0.259426,77094.0,77089.0,0.25944]
[1744132634846,0.272369,77102.0,77091.0,0.12625864]
[1744132635071,0.012969,77102.0,77092.0,0.012971]
[1744132635297,0.012969,77102.0,77091.0,0.12625864]
[1744132635298,0.012968,77109.0,77102.0,0.259396]
[1744132635525,0.012967,77118.0,77111.0,0.012968]
[1744132635747,0.58977618,77121.0,77098.0,0.01297]
[1744132635996,0.012967,77116.0,77099.0,0.14339309]
[1744132636251,0.012968,77107.0,77099.0,0.12625864]
[1744132636489,0.259397,77102.0,77094.0,0.012971]
[1744132636695,0.272359,77104.0,77098.0,0.01297]
[1744132636931,0.259411,77098.0,77094.0,0.00972438]
[1744132637145,0.2594,77101.0,77096.0,0.259415]
[1744132637347,0.27237,77101.0,77097.0,0.259412]
[1744132637611,0.0466,77133.0,77091.0,0.01306798]
[1744132637612,0.012967,77116.0,77107.0,0.012968]
[1744132637812,0.259379,77107.0,77098.0,0.12625864]
[1744132638045,0.01297,77101.0,77096.0,0.259414]
[1744132638237,0.012969,77102.0,77098.0,0.259408]
[1744132638457,0.012969,77102.0,77095.0,0.012971]
[1744132638458,0.012967,77113.0,77107.0,0.012968]
[1744132638716,0.012966,77123.0,77117.0,0.259344]
[1744132638931,0.0004,77129.0,77121.0,0.272298]
[1744132639151,0.0004,77129.0,77121.0,0.259332]
[1744132639387,0.012968,77109.0,77096.0,0.4159]
[1744132639604,0.34,77119.0,77095.0,0.220731]
[1744132639833,0.012969,77105.0,77096.0,0.12625864]
[1744132640133,0.01297,77100.0,77096.0,0.12625864]
[1744132640340,0.01297,77096.0,77087.0,0.012972]
[1744132640568,0.259443,77088.0,77087.0,0.12625864]
[1744132640782,0.259416,77097.0,77093.0,0.259425]
[1744132641002,0.259422,77095.0,77091.0,0.259433]
[1744132641218,0.259424,77094.0,77091.0,0.259433]
[1744132641431,0.259415,77097.0,77090.0,0.012971]
[1744132641644,0.259415,77097.0,77094.0,0.259422]
[1744132641871,0.272385,77097.0,77094.0,9.698e-05]
[1744132642776,0.259401,77101.0,77096.0,0.259415]
[1744132643010,0.259413,77097.0,77094.0,9.698e-05]
[1744132643238,0.27238,77098.0,77094.0,0.25951998]
[1744132643462,0.001,77097.0,77094.0,0.35951998]
[1744132643690,0.272385,77097.0,77094.0,0.10009698]
[1744132644141,0.012971,77095.0,77094.0,0.10009698]
[1744132644608,0.352971,77095.0,77094.0,0.10009698]
[1744132645787,0.355971,77095.0,77094.0,0.10009698]
[1744132646210,0.48522964,77095.0,77094.0,9.8e-07]
[1744132646434,0.55127477,77095.0,77094.0,9.8e-07]
[1744132646837,0.55527477,77095.0,77094.0,9.8e-07]
[1744132647035,0.55127477,77095.0,77094.0,9.8e-07]
[1744132647263,0.67753022,77095.0,77094.0,9.8e-07]
[1744132647464,0.98355022,77095.0,77094.0,9.8e-07]
[1744132647698,0.272503,77063.0,77062.0,0.000335]
[1744132647876,0.259514,77068.0,77062.0,0.000335]
[1744132647877,0.34,77069.0,77068.0,0.012975]
[1744132648129,0.012975,77070.0,77062.0,0.00047402]
[1744132648355,0.012974,77074.0,77068.0,0.012975]
[1744132648594,0.012972,77086.0,77076.0,0.012974]
[1744132648814,0.31601409,77095.0,77073.0,0.012974]
[1744132648815,0.018,77095.0,77091.0,0.012971]
[1744132649032,0.018,77095.0,77091.0,0.272397]
[1744132649033,0.009,77095.0,77091.0,0.272397]
[1744132649251,0.009,77095.0,77094.0,0.012971]
[1744132649469,0.012969,77105.0,77097.0,0.01297]
[1744132649734,0.2594976,77122.0,77113.0,0.012967]
[1744132650010,0.012967,77113.0,77108.0,0.272342]
[1744132650270,0.0001676,77122.0,77121.0,0.012966]
[1744132650521,0.0001676,77122.0,77120.0,0.259335]
[1744132650781,0.0001676,77122.0,77121.0,0.012966]
[1744132651037,0.0001676,77122.0,77121.0,0.1563587]
[1744132651312,0.0031676,77122.0,77121.0,0.1563587]
[1744132651570,0.11041799,77147.0,77137.0,0.272241]
[1744132651823,6e-07,77138.0,77137.0,2.40962049]
[1744132652070,0.11041799,77147.0,77142.0,0.272225]
[1744132652334,0.0001675,77150.0,77149.0,0.272199]
[1744132652592,0.0001675,77150.0,77149.0,0.28673985]
[1744132652902,0.012963,77138.0,77137.0,1.23568]
[1744132653146,0.012964,77131.0,77125.0,0.466997]
[1744132653376,0.012965,77128.0,77126.0,0.12625864]
[1744132653649,0.012965,77128.0,77121.0,0.012966]
[1744132653650,0.012967,77113.0,77112.0,1.02768]
[1744132653880,0.259326,77123.0,77118.0,0.259342]
[1744132654160,0.272298,77122.0,77116.0,0.272313]
[1744132654418,0.34,77148.0,77138.0,0.012963]
[1744132654699,0.0001675,77150.0,77146.0,0.012962]
[1744132654958,0.0001675,77150.0,77149.0,0.272199]
[1744132655210,0.0001675,77150.0,77149.0,0.41399849]
[1744132655460,0.00059575,77150.0,77149.0,0.41399849]
[1744132655722,0.00059575,77150.0,77149.0,0.41299849]
[1744132655964,0.00359575,77150.0,77149.0,0.41299849]
[1744132656228,7.5e-07,77150.0,77149.0,0.41299849]
[1744132656464,0.0001676,77167.0,77158.0,0.28670885]
[1744132656724,8e-07,77169.0,77168.0,0.28667285]
[1744132656953,8e-07,77169.0,77168.0,1.16883149]
[1744132657220,2e-07,77178.0,77177.0,0.62664185]
[1744132657461,0.0001672,77185.0,77177.0,0.62664185]
[1744132657462,2e-07,77185.0,77184.0,0.48661785]
[1744132657726,2e-07,77185.0,77184.0,1.03377649]
[1744132657965,1e-06,77189.0,77188.0,0.62660285]
[1744132658217,1e-06,77189.0,77188.0,0.75286149]
[1744132658515,1e-06,77189.0,77188.0,0.41286149]
[1744132658763,0.012956,77189.0,77188.0,0.00013902]
[1744132659031,1e-06,77189.0,77188.0,0.12639766]
[1744132659262,1e-06,77189.0,77188.0,0.15389351]
[1744132659753,0.001001,77189.0,77188.0,0.00413902]
[1744132660004,0.013956,77189.0,77188.0,0.00413902]
[1744132660240,0.00158179,77189.0,77188.0,0.00413902]
[1744132660489,0.00158179,77189.0,77188.0,0.00613902]
[1744132660726,0.34158179,77189.0,77188.0,0.00413902]
[1744132661098,0.35453679,77189.0,77188.0,0.00413902]
[1744132661396,0.34058179,77189.0,77188.0,0.00013902]
[1744132661535,0.00058179,77189.0,77188.0,0.00013902]
[1744132661741,0.00058179,77189.0,77188.0,0.00413902]
[1744132662196,0.00058179,77189.0,77188.0,0.01509402]
[1744132662436,0.012954,77195.0,77188.0,0.01509402]
[1744132662697,0.273059,77189.0,77188.0,0.00013902]
[1744132662940,0.27574078,77189.0,77188.0,0.00013902]
[1744132663262,0.39655442,77189.0,77188.0,0.00013902]
[1744132663510,0.27274078,77189.0,77188.0,0.00313902]
[1744132663747,0.272157,77161.0,77160.0,0.20396]
[1744132663984,0.259224,77154.0,77150.0,0.20396]
[1744132664228,0.2601938,77153.0,77150.0,0.20396]
[1744132664472,0.012961,77151.0,77150.0,0.20396]
[1744132664709,0.272196,77150.0,77149.0,0.00950416]
[1744132664941,0.272203,77148.0,77147.0,1.02696]
[1744132665176,0.272199,77149.0,77147.0,1.02696]
[1744132665449,0.01473947,77148.0,77147.0,0.00013916]
[1744132665722,0.01473947,77148.0,77147.0,0.1393598]
[1744132665723,0.00177747,77148.0,77147.0,0.1393598]
[1744132665989,0.00177747,77148.0,77147.0,0.15390065]
[1744132666225,0.003,77150.0,77149.0,0.012961]
[1744132666455,0.003,77150.0,77148.0,0.259241]
[1744132666456,0.272191,77152.0,77147.0,0.1263978]
[1744132666686,0.275203,77148.0,77147.0,0.00013916]
[1744132666917,0.273203,77148.0,77147.0,0.00013916]
[1744132667155,0.27504788,77148.0,77147.0,0.00013916]
[1744132667404,0.27604788,77148.0,77147.0,0.00013916]
[1744132667670,0.85146901,77148.0,77147.0,0.00013916]
[1744132667913,0.8519408,77148.0,77147.0,0.00013916]
[1744132668124,0.9452408,77148.0,77147.0,1.6e-07]
[1744132668344,0.83507831,77148.0,77147.0,1.6e-07]
[1744132668540,0.66111967,77148.0,77147.0,1.6e-07]
[1744132668763,0.66084462,77148.0,77147.0,1.6e-07]
[1744132669127,0.66184462,77148.0,77147.0,1.6e-07]
[1744132669899,0.66084462,77148.0,77147.0,1.6e-07]
[1744132670100,0.66884462,77148.0,77147.0,1.6e-07]
[1744132670308,0.67684462,77148.0,77147.0,1.6e-07]
[1744132671167,0.63124462,77148.0,77147.0,1.6e-07]
[1744132671380,0.01904162,77148.0,77147.0,1.6e-07]
[1744132671601,0.03200362,77148.0,77147.0,1.6e-07]
[1744132671792,0.02400362,77148.0,77147.0,1.6e-07]
[1744132672001,0.02500362,77148.0,77147.0,1.6e-07]
[1744132672210,0.03300362,77148.0,77147.0,1.6e-07]
[1744132672430,0.02400362,77148.0,77147.0,1.6e-07]
[1744132672656,0.44806258,77148.0,77147.0,1.6e-07]
[1744132672872,0.57432122,77148.0,77147.0,1.6e-07]
[1744132673090,0.37100362,77148.0,77147.0,1.6e-07]
[1744132673515,0.37100362,77148.0,77147.0,0.01296216]
[1744132673516,0.01804162,77148.0,77147.0,0.01296216]
[1744132673726,0.01708082,77148.0,77147.0,0.01296216]
[1744132673949,0.015,77148.0,77147.0,0.15376165]
[1744132674394,0.008,77148.0,77147.0,0.14079965]
[1744132674614,0.008,77148.0,77147.0,0.15376165]
[1744132674816,0.024962,77148.0,77147.0,1.6e-07]
[1744132675035,0.02668892,77148.0,77147.0,1.6e-07]
[1744132675164,0.01372692,77148.0,77147.0,1.6e-07]
[1744132675360,0.004,77148.0,77147.0,0.1392208]
[1744132675563,0.004,77148.0,77147.0,0.14181291]
[1744132675945,0.012961,77153.0,77147.0,1.6e-07]
[1744132676095,0.017962,77148.0,77147.0,1.6e-07]
[1744132676465,0.01980688,77148.0,77147.0,1.6e-07]
[1744132677490,0.35480688,77148.0,77147.0,1.6e-07]
[1744132677689,0.00584488,77148.0,77147.0,1.6e-07]
[1744132678026,0.263241,77148.0,77147.0,1.6e-07]
[1744132678307,0.004,77148.0,77147.0,0.25924516]
[1744132678494,0.0059797,77148.0,77147.0,0.27220716]
[1744132678719,0.004,77148.0,77147.0,0.27220716]
[1744132678928,0.004,77148.0,77147.0,1.6e-07]
[1744132678929,0.016962,77148.0,77147.0,1.6e-07]
[1744132679125,0.272225,77142.0,77141.0,1.6e-07]
[1744132679261,0.272313,77117.0,77116.0,0.0003348]
[1744132679647,0.27562532,77117.0,77116.0,0.00076305]
[1744132679893,0.00331232,77117.0,77116.0,0.00076305]
[1744132680093,0.00331232,77117.0,77116.0,0.39933769]
[1744132680405,0.012965,77128.0,77121.0,0.012966]
[1744132680607,0.00304237,77127.0,77123.0,0.259325]
[1744132680814,0.352964,77132.0,77125.0,0.259317]
[1744132680948,0.259276,77138.0,77131.0,0.012964]
[1744132681311,0.012965,77129.0,77123.0,0.259325]
[1744132681523,0.34,77141.0,77116.0,0.00076305]
[1744132681725,0.259343,77119.0,77116.0,0.00076305]
[1744132681938,0.012967,77117.0,77116.0,0.00076305]
[1744132682142,0.259345,77118.0,77116.0,0.00076305]
[1744132682544,0.272312,77118.0,77116.0,0.00076305]
[1744132682742,0.012967,77117.0,77116.0,0.00076305]
[1744132682971,0.84907618,77131.0,77116.0,0.00076305]
[1744132683173,0.259333,77121.0,77117.0,0.12885168]
[1744132683403,0.261343,77118.0,77116.0,0.00076305]
[1744132683606,0.012966,77123.0,77116.0,0.00076305]
[1744132683809,0.259344,77118.0,77116.0,0.00076305]
[1744132684010,0.012967,77117.0,77116.0,0.00076305]
[1744132684217,0.352967,77117.0,77116.0,0.00076305]
[1744132684462,0.47922245,77117.0,77116.0,0.00076305]
[1744132684706,0.34,77109.0,77106.0,8.5e-07]
[1744132684952,0.661847,77107.0,77106.0,8.5e-07]
[1744132685198,0.661847,77107.0,77074.0,0.11583311]
[1744132685199,0.612422,77086.0,77074.0,0.11583311]
[1744132685440,0.612422,77086.0,77074.0,0.37532011]
[1744132685670,0.612422,77086.0,77075.0,0.00968063]
[1744132685891,0.259443,77089.0,77079.0,0.012973]
[1744132686117,0.259443,77089.0,77077.0,0.012974]
[1744132686118,0.01297,77096.0,77086.0,0.012972]
[1744132686341,0.01297,77097.0,77087.0,0.259444]
[1744132686585,0.012969,77102.0,77093.0,0.259425]
[1744132686812,0.012969,77104.0,77095.0,0.259417]
[1744132687041,0.204,77117.0,77101.0,0.259398]
[1744132687042,0.259375,77109.0,77101.0,0.259398]
[1744132687274,0.012969,77106.0,77099.0,0.01297]
[1744132687510,0.34,77116.0,77094.0,0.012971]
[1744132687511,0.0495,77135.0,77113.0,0.012967]
[1744132687729,0.012967,77116.0,77110.0,0.259367]
[1744132687879,0.012967,77116.0,77109.0,0.012968]
[1744132687880,0.259319,77125.0,77101.0,0.12625864]
[1744132688080,0.259395,77103.0,77101.0,0.12625864]
[1744132688307,0.004,77104.0,77102.0,0.272363]
[1744132688489,0.004,77104.0,77103.0,0.15376849]
[1744132688693,0.259339,77119.0,77112.0,0.012968]
[1744132688855,0.012965,77128.0,77121.0,0.012966]
[1744132689057,0.272237,77139.0,77130.0,0.012965]
[1744132689256,0.0495,77149.0,77134.0,0.012964]
[1744132689257,0.012962,77145.0,77134.0,0.012964]
[1744132689508,0.012963,77140.0,77130.0,0.12625864]
[1744132689740,0.012967,77117.0,77107.0,0.012968]
[1744132689989,0.259351,77116.0,77108.0,0.012968]
[1744132690184,0.58977618,77122.0,77100.0,0.01297]
[1744132690399,0.259335,77121.0,77114.0,0.259355]
[1744132690603,0.272283,77126.0,77119.0,0.259339]
[1744132690847,0.012965,77129.0,77120.0,0.012966]
[1744132691052,0.012963,77138.0,77121.0,0.12625864]
[1744132691272,0.005,77140.0,77121.0,0.12625864]
[1744132691273,0.259272,77140.0,77130.0,0.012965]
[1744132691468,0.012962,77147.0,77139.0,0.259269]
[1744132691650,0.012962,77146.0,77139.0,0.259269]
[1744132691852,0.012961,77154.0,77140.0,0.012963]
[1744132692065,0.0004,77159.0,77158.0,0.01296]
[1744132692254,0.0004,77159.0,77158.0,0.1418106]
[1744132692557,0.00082868,77159.0,77158.0,0.12625864]
[1744132692756,0.00082868,77159.0,77158.0,0.13921864]
[1744132692957,0.00082868,77159.0,77158.0,0.12625864]
[1744132693161,0.00082868,77159.0,77144.0,1.286734]
[1744132693474,0.012962,77145.0,77139.0,0.259272]
[1744132693681,0.259253,77145.0,77140.0,0.12625864]
[1744132693894,0.012966,77124.0,77120.0,1.23132]
[1744132694020,0.012966,77121.0,77120.0,1.23132]
[1744132694228,0.012966,77124.0,77120.0,1.23132]
[1744132694454,0.012965,77125.0,77120.0,1.23132]
[1744132694871,0.012967,77117.0,77108.0,0.259376]
[1744132695035,0.272368,77102.0,77100.0,0.2038]
[1744132695399,0.27510925,77101.0,77086.0,0.259449]
[1744132695559,0.27510925,77101.0,77085.0,0.2041348]
[1744132695560,0.58977618,77130.0,77099.0,0.12659344]
[1744132695722,0.012966,77123.0,77108.0,0.012968]
[1744132695955,0.012967,77118.0,77110.0,0.272336]
[1744132696228,0.012964,77135.0,77125.0,0.012965]
[1744132696418,0.012964,77133.0,77124.0,0.25932]
[1744132696629,0.272258,77133.0,77122.0,0.012966]
[1744132696756,0.001,77125.0,77124.0,0.272286]
[1744132696968,0.001,77125.0,77122.0,0.14181765]
[1744132696969,0.012966,77121.0,77113.0,0.012967]
[1744132697200,0.012965,77128.0,77119.0,0.012966]
[1744132697407,0.34,77139.0,77125.0,0.012965]
[1744132697619,0.34,77139.0,77127.0,0.259311]
[1744132697620,0.261293,77133.0,77127.0,0.259311]
[1744132697860,0.261293,77133.0,77127.0,0.012965]
[1744132697861,0.002,77133.0,77127.0,0.012965]
[1744132698073,0.002,77133.0,77132.0,0.272259]
[1744132698271,0.05,77185.0,77132.0,0.272259]
[1744132698272,0.012957,77176.0,77158.0,0.272168]
[1744132698523,0.012958,77169.0,77158.0,0.39842664]
[1744132698707,0.012959,77161.0,77157.0,0.2038]
[1744132698929,0.01296,77158.0,77157.0,0.2038]
[1744132699087,0.0004,77159.0,77157.0,0.2038]
[1744132699284,0.0004,77159.0,77158.0,0.272168]
[1744132699688,0.0004,77159.0,77158.0,0.274168]
[1744132699894,0.0004,77159.0,77158.0,0.39850181]
[1744132700297,0.01336,77159.0,77158.0,7.517e-05]
[1744132700646,0.0004,77159.0,77158.0,7.517e-05]
[1744132700837,0.0004,77159.0,77158.0,0.39850181]
[1744132701262,0.612565,77159.0,77158.0,7.517e-05]
[1744132701462,0.82859164,77159.0,77158.0,1.7e-07]
[1744132701776,0.73882364,77159.0,77158.0,1.7e-07]
[1744132701980,0.3404,77159.0,77158.0,1.7e-07]
[1744132702207,0.35336,77159.0,77158.0,1.7e-07]
[1744132702421,0.35536,77159.0,77158.0,1.7e-07]
[1744132702807,0.35536,77159.0,77158.0,0.00200017]
[1744132703027,0.0084,77159.0,77158.0,0.00300017]
[1744132703228,0.0084,77159.0,77158.0,0.01396017]
[1744132703446,0.259189,77164.0,77158.0,0.26020717]
[1744132703652,0.006,77159.0,77158.0,0.26020717]
[1744132703874,0.006,77159.0,77158.0,1.7e-07]
[1744132704196,0.276165,77159.0,77158.0,1.7e-07]
[1744132704530,0.616165,77159.0,77158.0,1.7e-07]
[1744132704718,0.74242364,77159.0,77158.0,1.7e-07]
[1744132705087,0.616165,77159.0,77158.0,1.7e-07]
[1744132705287,0.612165,77159.0,77158.0,1.7e-07]
[1744132705613,0.343,77159.0,77158.0,1.7e-07]
[1744132705875,0.34,77171.0,77159.0,0.259205]
[1744132706080,0.012958,77168.0,77160.0,0.01296]
[1744132706283,0.259169,77170.0,77160.0,0.272159]
[1744132706421,0.259186,77165.0,77158.0,0.00100017]
[1744132706778,0.007,77159.0,77158.0,0.00100017]
[1744132706980,0.007,77159.0,77158.0,0.01296017]
[1744132707387,0.004,77168.0,77165.0,0.012959]
[1744132707727,0.259181,77166.0,77158.0,1.7e-07]
[1744132707925,0.35296,77159.0,77158.0,1.7e-07]
[1744132708611,0.012959,77166.0,77158.0,1.7e-07]
[1744132708816,0.272098,77178.0,77170.0,0.259167]
[1744132709020,0.012956,77180.0,77168.0,0.012958]
[1744132709021,0.012956,77184.0,77172.0,0.272116]
[1744132709276,0.2593054,77179.0,77172.0,0.272116]
[1744132709467,0.2593054,77179.0,77167.0,0.012958]
[1744132709468,0.012959,77166.0,77159.0,0.20376]
[1744132709664,0.012959,77164.0,77159.0,0.33001864]
[1744132709840,0.012959,77165.0,77159.0,0.20376]
[1744132710038,0.27213,77169.0,77159.0,0.20376]
[1744132710238,0.259172,77169.0,77162.0,0.272152]
[1744132710474,0.012957,77176.0,77166.0,0.012959]
[1744132710684,0.0021674,77179.0,77173.0,0.012957]
[1744132710834,0.0021674,77179.0,77166.0,0.12885047]
[1744132710835,0.012957,77175.0,77166.0,0.12885047]
[1744132711037,0.0021674,77179.0,77172.0,0.012958]
[1744132711241,0.2613054,77179.0,77172.0,0.012958]
[1744132711439,0.0021674,77179.0,77177.0,0.272099]
[1744132711685,0.0021674,77179.0,77178.0,0.14180684]
[1744132711897,0.0001674,77179.0,77178.0,0.34556684]
[1744132712149,0.0001674,77179.0,77178.0,0.34297564]
[1744132712389,0.012958,77169.0,77164.0,0.20376]
[1744132712603,0.012959,77162.0,77158.0,1.7e-07]
[1744132712817,0.272156,77162.0,77158.0,1.7e-07]
[1744132713021,0.01296,77159.0,77158.0,1.7e-07]
[1744132713657,0.53753814,77159.0,77158.0,1.7e-07]
[1744132713848,0.58733814,77159.0,77158.0,1.7e-07]
[1744132714030,0.58733814,77159.0,77158.0,0.00200017]
[1744132714638,0.35296,77159.0,77158.0,0.00200017]
[1744132714860,0.47921864,77159.0,77158.0,0.00200017]
[1744132715062,0.47921864,77159.0,77158.0,1.7e-07]
[1744132715467,0.47921864,77159.0,77158.0,0.00100017]
[1744132715675,0.52671864,77159.0,77158.0,1.7e-07]
[1744132715913,0.52671864,77159.0,77114.0,0.012967]
[1744132715914,0.012965,77125.0,77114.0,0.20376]
[1744132716181,0.272327,77113.0,77111.0,0.0004]
[1744132716386,0.012969,77103.0,77099.0,0.0003348]
[1744132716585,0.012976,77063.0,77062.0,4e-07]
[1744132716793,0.012976,77060.0,77059.0,0.0003348]
[1744132717026,0.73833584,77060.0,77059.0,0.00076322]
[1744132717237,0.98839988,77060.0,77059.0,0.00076322]
[1744132717647,0.86257804,77060.0,77059.0,2.2e-07]
[1744132718034,0.012978,77053.0,77052.0,8e-07]
[1744132718238,0.73879764,77053.0,77052.0,0.00013964]
[1744132718398,0.012978,77051.0,77050.0,6.4e-07]
[1744132718600,0.47923664,77051.0,77050.0,0.0001348]
[1744132718925,0.47923664,77051.0,77050.0,8e-07]
[1744132720010,0.47923664,77051.0,77050.0,0.0010008]
[1744132720011,0.366978,77051.0,77050.0,0.0010008]
[1744132720809,0.014,77051.0,77050.0,0.2238988]
[1744132721006,0.014,77051.0,77050.0,0.2109208]
[1744132721708,0.007,77051.0,77050.0,0.2109208]
[1744132721853,0.012977,77056.0,77050.0,0.2099208]
[1744132722056,0.001,77051.0,77050.0,0.4834698]
[1744132722262,0.002,77051.0,77050.0,0.61572844]
[1744132722467,0.001,77051.0,77050.0,0.62926929]
[1744132722660,0.001,77051.0,77050.0,0.62326929]
[1744132722864,0.012971,77095.0,77080.0,0.012973]
[1744132723126,0.01297,77098.0,77083.0,0.012973]
[1744132723358,0.272387,77096.0,77086.0,0.272422]
[1744132723741,0.25947,77080.0,77055.0,0.045]
[1744132723759,0.272489,77067.0,77063.0,0.20996]
[1744132724196,0.259548,77057.0,77050.0,0.211]
[1744132724435,0.012974,77076.0,77067.0,0.259511]
[1744132724643,0.34,77079.0,77071.0,0.012975]
[1744132724863,0.012973,77081.0,77071.0,0.39873164]
[1744132725093,0.272495,77066.0,77059.0,0.21]
[1744132725299,0.012975,77067.0,77059.0,0.222977]
[1744132725517,0.58977618,77081.0,77059.0,0.222977]
[1744132725518,0.34,77079.0,77072.0,0.012974]
[1744132725732,0.25981,77099.0,77080.0,0.012973]
[1744132725951,0.25981,77099.0,77088.0,0.012972]
[1744132725952,0.01297,77097.0,77088.0,0.012972]
[1744132726164,0.01297,77097.0,77090.0,0.272405]
[1744132726386,0.259433,77092.0,77086.0,0.272421]
[1744132726600,0.012972,77087.0,77079.0,0.272447]
[1744132726803,0.012972,77088.0,77081.0,0.27244]
[1744132727027,0.012972,77088.0,77083.0,0.25946]
[1744132727261,0.012972,77088.0,77083.0,0.25929709]
[1744132727663,0.01297,77100.0,77091.0,0.012971]
[1744132727904,0.01297,77097.0,77090.0,0.012971]
[1744132728143,0.012971,77094.0,77087.0,0.259444]
[1744132728387,0.012972,77089.0,77083.0,0.00013709]
[1744132728630,0.272412,77089.0,77083.0,0.25959509]
[1744132728882,0.272429,77084.0,77083.0,0.00013709]
[1744132729117,0.012972,77084.0,77083.0,0.00013709]
[1744132729596,0.272776,77099.0,77087.0,0.012972]
[1744132729841,0.0004,77099.0,77094.0,0.012971]
[1744132730318,0.0004,77099.0,77098.0,0.01297]
[1744132730584,0.0004,77099.0,77098.0,0.34922864]
[1744132730821,0.012965,77125.0,77116.0,0.012967]
[1744132731055,0.012966,77123.0,77117.0,0.21]
[1744132731297,0.259314,77127.0,77120.0,0.259336]
[1744132731557,0.25934,77119.0,77117.0,0.21]
[1744132731805,0.012967,77118.0,77117.0,0.21]
[1744132732065,0.012964,77134.0,77124.0,0.012966]
[1744132732320,0.259301,77131.0,77126.0,0.259312]
[1744132732548,0.00042837,77119.0,77118.0,0.352967]
[1744132732787,0.00042837,77119.0,77118.0,0.47922564]
[1744132733045,0.00042837,77119.0,77118.0,0.49376649]
[1744132733253,3.7e-07,77119.0,77118.0,0.49376649]
[1744132733675,0.0004,77129.0,77128.0,0.612274]
[1744132733804,0.0004,77129.0,77128.0,0.75307349]
[1744132734044,1e-06,77129.0,77128.0,0.75307349]
[1744132734653,0.0001677,77145.0,77144.0,0.612217]
[1744132734832,0.0001677,77145.0,77144.0,1.78077649]
[1744132735035,0.0001677,77145.0,77144.0,1.99073649]
[1744132735448,0.0001677,77145.0,77144.0,1.97619564]
[1744132735904,0.0001677,77145.0,77144.0,1.63933273]
[1744132736111,3.33e-05,77145.0,77144.0,1.25781909]
[1744132736314,3.33e-05,77145.0,77144.0,1.73861858]
[1744132737296,0.0001675,77188.0,77178.0,0.62663885]
[1744132737585,0.0001675,77188.0,77178.0,1.99033749]
[1744132737785,0.0001675,77188.0,77178.0,1.02752]
[1744132737786,0.2593044,77179.0,77178.0,1.02752]
[1744132737990,0.2593044,77179.0,77178.0,1.37665564]
[1744132737991,0.0001674,77179.0,77178.0,1.37665564]
[1744132738191,0.0001674,77179.0,77178.0,1.250397]
[1744132738616,0.0001674,77179.0,77178.0,1.23757709]
[1744132739040,0.0011674,77179.0,77178.0,1.24857709]
[1744132739466,0.0001674,77179.0,77178.0,1.63593373]
[1744132739680,0.0001674,77179.0,77178.0,1.65147458]
[1744132739890,0.0001674,77179.0,77178.0,1.65347458]
[1744132740420,0.0001674,77179.0,77178.0,1.63893373]
[1744132741029,0.0001674,77179.0,77178.0,1.65347458]
[1744132741229,4e-07,77179.0,77178.0,1.99347458]
[1744132741430,4e-07,77179.0,77178.0,1.99147458]
[1744132741629,4e-07,77179.0,77178.0,1.65047458]
[1744132741998,4e-07,77179.0,77178.0,1.64093373]
[1744132742186,4e-07,77179.0,77178.0,1.24257709]
[1744132742187,0.2720934,77179.0,77178.0,1.24257709]
[1744132742334,0.0001675,77190.0,77188.0,0.012955]
[1744132742536,0.0001675,77190.0,77188.0,0.13921364]
[1744132742777,0.0001675,77190.0,77188.0,0.15634512]
[1744132743147,0.0001675,77190.0,77188.0,0.13921364]
[1744132743495,0.0001675,77203.0,77202.0,0.28655385]
[1744132743496,4e-07,77203.0,77202.0,0.28655385]
[1744132743697,9e-07,77210.0,77208.0,0.25904]
[1744132743936,9e-07,77210.0,77209.0,1.18071049]
[1744132744107,0.0001676,77214.0,77210.0,0.012951]
[1744132744108,6.372e-05,77214.0,77210.0,0.012951]
[1744132744316,6.372e-05,77214.0,77213.0,0.271974]
[1744132744516,6.372e-05,77214.0,77209.0,1.37596964]
[1744132744517,6.372e-05,77214.0,77209.0,1.23676]
[1744132744936,0.25903,77212.0,77209.0,0.2098]
[1744132745136,0.259063,77202.0,77198.0,0.259072]
[1744132745362,0.259052,77205.0,77201.0,0.012953]
[1744132745536,0.012954,77195.0,77194.0,0.2107022]
[1744132745933,0.259081,77196.0,77194.0,0.20972]
[1744132746135,0.012954,77195.0,77194.0,0.20972]